Cogmind - Beta 10.1 @@@ ROGUE MODE // 2020.10.29 @ 22:03:52 Player: aperiodic Result: Destroyed by L-61 Swordsman with Power Sword Performance ------------- Evolutions (6) 3000 Regions Visited (26) 5200 Robots Destroyed (328) 1640 Value Destroyed (8618) 8618 Prototype IDs (109) 2180 Alien Tech Used (1) 200 Bonus (1541) 1541 TOTAL SCORE: 22379 Bonus ------- High Alert Combat Kills 527 Follower Combat Kills 269 Aligned with FarCom 300 Met Data Miner 300 Met Zhirov 300 Friendly Fire -155 Cogmind --------- Core Integrity 0/1150 Matter 276/300 Energy 84/100 System Corruption 2% Temperature Cool (0) Movement Core (300) Ox5 Location -4/Armory Parts ------- > --- POWER (1) -------- (None) > --- PROPULSION (3) --- (None) > --- UTILITY (13) ----- Large Storage Unit Experimental Signal Interpreter Advanced Hacking Suite Improved System Shield > --- WEAPON (2) ------- (None) > --- INVENTORY (10) --- Micro Fission Core Heavy Antimatter Reactor Improved Fusion Compressor Advanced ECM Suite Advanced Cloaking Device System Purifier Transdimensional Reconstructor Improved Remote Datajack Peak State ------------ > --- POWER ------------ Heavy Antimatter Reactor > --- PROPULSION ------- Cooled Nuclear Pulse Thruster Cooled Nuclear Pulse Thruster Experimental Cesium-ion Thruster > --- UTILITY ---------- Advanced Power Amplifier Large Storage Unit Gravity Neutralizing Apparatus Gravity Neutralizing Apparatus Experimental Sensor Array Experimental Signal Interpreter Advanced Melee Analysis Suite Advanced Reaction Control System Experimental Utility Shielding Advanced Hacking Suite System Mapper Improved System Shield Ghost Barrier > --- WEAPON ----------- Lance CR-A16's Behemoth Slayer > --- INVENTORY -------- Micro Fission Core Cooled Nuclear Pulse Thruster Cooled Nuclear Pulse Thruster Improved Fusion Compressor Advanced ECM Suite Experimental Utility Shielding System Purifier Transdimensional Reconstructor Molecular Deconstructor [Rating: 133] Favorites ----------- Power Cold Fusion Reactor Engine Ion Engine Power Core Light Neutrino Core Reactor Cold Fusion Reactor Propulsion Advanced Myomer Leg Treads Light Treads Leg Advanced Myomer Leg Wheel Wheel Hover Unit Cooled Antigrav System Flight Unit Biomechanical Wings Utility Ghost Barrier Device Heat Sink Storage Large Storage Unit Processor Advanced Melee Analysis Suite Hackware Ghost Barrier Protection Improved Utility Shielding Weapon Mini Grenade Launcher Energy Gun EM Pulse Gun Energy Cannon Guided Plasma Cannon Ballistic Gun 8R-AWN's Boregun Launcher Mini Grenade Launcher Special Weapon Molecular Deconstructor Impact Weapon Makeshift Hammer Slashing Weapon Ripper Piercing Weapon Lance Build | -11 -10 -10 -9 -9 -9 -8 -8 -7 -7 -7 -7 -7 -7 -6 -6 -6 -6 -6 -5 -5 -5 -5 -5 -4 -4 -4 ------- Run | Scr Mat Min Mat Min Exi Min Mat Fac Was Fac Low Low Dat Pro Fac Low Low Zio Pro Fac Upp Upp Zhi Pro Fac Arm Slots Evolved 12 | . . . 2 . . . 2 2 . . . . . . 2 . . . . 2 . . . . 2 . Power . | . . . . . . . . . . . . . . . . . . . . . . . . . . . Propulsion 1 | . . . . . . . 1 . . . . . . . . . . . . . . . . . . . Utility 11 | . . . 2 . . . 1 2 . . . . . . 2 . . . . 2 . . . . 2 . Weapon . | . . . . . . . . . . . . . . . . . . . . . . . . . . . Parts Attached 310 | 6 11 11 22 2 32 13 41 13 4 31 7 . 1 5 22 9 . 4 11 12 2 8 6 1 10 26 Power 30 | 1 . 1 1 . 7 . 2 . . 4 . . . . 7 . . 2 . . . 1 2 . 1 1 Engine 12 | 1 . 1 1 . 3 . 1 . . 1 . . . . 3 . . 1 . . . . . . . . Core 10 | . . . . . 1 . . . . 2 . . . . 4 . . 1 . . . 1 1 . . . Reactor 8 | . . . . . 3 . 1 . . 1 . . . . . . . . . . . . 1 . 1 1 Propulsion 60 | 2 8 6 9 2 4 2 8 2 . 5 . . . . 4 . . . . 1 . . 2 . 1 4 Treads 17 | . 4 3 5 2 1 . . . . . . . . . . . . . . . . . . . . 2 Leg 15 | . . . . . 3 1 8 2 . 1 . . . . . . . . . . . . . . . . Wheel 12 | 2 4 3 3 . . . . . . . . . . . . . . . . . . . . . . . Hover 1 | . . . . . . 1 . . . . . . . . . . . . . . . . . . . . Flight 15 | . . . 1 . . . . . . 4 . . . . 4 . . . . 1 . . 2 . 1 2 Utility 105 | 1 2 . 3 . 12 6 16 10 3 15 . . 1 . 8 . . 2 . 10 . . 2 . 5 9 Device 50 | . 1 . . . 6 4 7 5 . 5 . . . . 4 . . 1 . 7 . . 1 . 1 8 Storage 14 | 1 1 . 1 . 4 2 . . 1 2 . . . . . . . . . 1 . . 1 . . . Processor 4 | . . . . . . . . 1 . . . . 1 . 1 . . 1 . . . . . . . . Hackware 18 | . . . . . . . 6 2 . 5 . . . . 2 . . . . 1 . . . . 2 . Protection 19 | . . . 2 . 2 . 3 2 2 3 . . . . 1 . . . . 1 . . . . 2 1 Artifact . | . . . . . . . . . . . . . . . . . . . . . . . . . . . Weapon 115 | 2 1 4 9 . 9 5 15 1 1 7 7 . . 5 3 9 . . 11 1 2 7 . 1 3 12 Energy Gun 7 | 2 1 1 . . . . . . . 2 1 . . . . . . . . . . . . . . . Energy Cannon 5 | . . . . . 2 . 3 . . . . . . . . . . . . . . . . . . . Ballistic Gun 23 | . . 1 6 . 6 1 6 . 1 2 . . . . . . . . . . . . . . . . Ballistic Cannon . | . . . . . . . . . . . . . . . . . . . . . . . . . . . Launcher 50 | . . 2 3 . 1 4 4 . . 2 5 . . 4 1 6 . . 7 . 1 4 . 1 . 5 Special Weapon 6 | . . . . . . . . . . . . . . . . . . . . . . 1 . . 1 4 Impact Weapon 2 | . . . . . . . 2 . . . . . . . . . . . . . . . . . . . Slashing Weapon 8 | . . . . . . . . 1 . 1 1 . . 1 1 3 . . . . . . . . . . Piercing Weapon 14 | . . . . . . . . . . . . . . . 1 . . . 4 1 1 2 . . 2 3 Special Melee Weapon . | . . . . . . . . . . . . . . . . . . . . . . . . . . . Unidentified Prototypes 16 | . . . 1 . 6 2 1 . . . . . . . . . . . . . . 1 3 . . 2 Parts Lost 49 | . 1 2 4 1 9 . 10 . . 3 . . . . . . . . . . . 2 . . . 17 Power 4 | . . 1 . . 1 . . . . . . . . . . . . . . . . 1 . . . 1 Propulsion 14 | . . . 2 1 3 . 5 . . . . . . . . . . . . . . . . . . 3 Utility 17 | . . . . . 2 . 3 . . 2 . . . . . . . . . . . . . . . 10 Weapon 14 | . 1 1 2 . 3 . 2 . . 1 . . . . . . . . . . . 1 . . . 3 Highest Loss Streak 9 | . 1 1 1 2 9 . 2 . . 1 . . . . . . . . . . . 1 . . . 8 Average Slot Usage (%) 92 | . 96 100 99 99 82 87 82 91 77 96 97 100 100 98 97 91 93 95 99 94 100 97 93 94 96 84 Engine 4 | . 14 14 11 11 7 . . . . 1 7 7 7 7 5 . . . . . . . . . . . Reactor 3 | . . . . . 3 11 8 7 7 4 . . . . . . . . . . . . . . 5 4 Treads 3 | . 14 . 13 21 10 . . . . . . . . . . . . . . . . . . . . 1 Leg 7 | . . . . . 10 22 21 22 23 16 . . . . . . . . . . . . . . . . Wheel 3 | . 13 27 8 . . . . . . . . . . . . . . . . . . . . . . . Flight 6 | . . . . . . . . . . 5 23 23 23 23 19 20 20 20 20 17 17 17 17 17 14 10 Device 9 | . 9 14 11 11 9 21 3 2 . 3 7 7 7 7 5 6 6 6 6 8 17 17 15 17 21 19 Storage 10 | . 15 14 22 22 12 11 9 7 7 10 7 7 7 7 6 6 6 6 6 5 5 5 5 5 5 5 Processor 5 | . . . . . . . . 7 7 7 7 7 11 15 13 13 13 15 20 15 11 11 11 11 10 9 Hackware 13 | . . . . . . . 21 25 8 25 23 23 18 15 24 20 20 20 20 21 23 23 23 23 25 21 Protection 4 | . . . 10 11 5 . . 1 7 3 7 7 7 7 5 6 6 6 6 5 5 5 5 5 5 2 Energy Gun 2 | . 26 16 2 . . . . . . 3 4 . . . . . . . . . . . . . . . Ballistic Gun 6 | . . 2 19 11 12 11 13 7 15 5 . . . . . . . . . . . . . . . . Launcher 4 | . . 9 . 11 5 8 2 . . 2 5 7 7 6 5 5 6 6 6 5 5 3 . . . . Piercing Weapon 1 | . . . . . . . . . . . . . . . 2 . . . 5 5 5 4 . . 7 5 Naked Turns . | . . . . . . . . . . . . . . . . . . . . . . . . . . . Heaviest Build 146 | 13 29 27 50 50 117 119 109 110 146 146 20 20 20 20 23 28 23 27 23 33 33 33 45 35 48 48 Greatest Support 94 | 20 40 20 40 40 50 50 70 68 68 70 20 20 20 20 24 23 23 23 23 35 35 35 37 37 49 94 Greatest Overweight (x) 29 | 2 1 1 4 1 29 2 2 2 2 2 . . . . . 1 . 1 . . . . 1 . 1 5 Average Overweight (x) . | . . 1 1 1 1 2 1 1 1 . . . . . . . . . . . . . . . . . Largest Inventory Capacity 44 | 6 12 10 16 16 44 44 24 24 28 24 8 8 8 8 8 8 8 8 8 10 10 10 10 10 10 10 Average Capacity 15 | 4 9 10 16 16 23 24 24 24 24 13 8 8 8 8 8 8 8 8 8 8 10 10 10 10 10 10 Most Carried 24 | 4 10 10 16 16 24 24 24 22 24 24 8 8 8 8 8 8 8 8 8 10 10 10 10 10 10 10 Average Carried 13 | 3 7 9 14 14 18 23 22 21 23 13 7 7 6 6 7 7 8 7 7 8 10 9 9 9 8 9 Final Capacity 24 | 6 10 10 16 16 24 24 24 24 24 8 8 8 8 8 8 8 8 8 8 10 10 10 10 10 10 10 Final Carried 24 | 4 10 10 16 15 24 24 21 22 24 7 8 8 6 6 8 8 8 8 8 10 10 8 10 10 10 8 Class Distribution -------------------- 22% | Mutant 22% | Wizard-Sprinter 17% | Scavenger-Mutant 17% | Hacker-Mutant 10% | Hacker-Sprinter 6% | Hauler-Mutant 3% | Wizard-Mutant Dominant Class ---------------- Mutant | -10/Materials Mutant | -10/Mines Mutant | -9/Materials Mutant | -9/Mines Hauler-Mutant | -9/Exiles Scavenger-Mutant | -8/Mines Hacker-Mutant | -8/Materials Hacker-Mutant | -7/Factory Scavenger-Mutant | -7/Waste Hacker-Mutant | -7/Factory Hacker-Sprinter | -7/Lower Caves Hacker-Sprinter | -7/Lower Caves Hacker-Sprinter | -7/Data Miner Hacker-Sprinter | -6/Proximity Caves Wizard-Sprinter | -6/Factory Hacker-Sprinter | -6/Lower Caves Hacker-Sprinter | -6/Lower Caves Hacker-Sprinter | -6/Zion Hacker-Sprinter | -5/Proximity Caves Wizard-Sprinter | -5/Factory Wizard-Sprinter | -5/Upper Caves Wizard-Sprinter | -5/Upper Caves Wizard-Sprinter | -5/Zhirov Wizard-Sprinter | -4/Proximity Caves Wizard-Sprinter | -4/Factory Wizard-Mutant | -4/Armory Resources | -11 -10 -10 -9 -9 -9 -8 -8 -7 -7 -7 -7 -7 -7 -6 -6 -6 -6 -6 -5 -5 -5 -5 -5 -4 -4 -4 ----------- Run | Scr Mat Min Mat Min Exi Min Mat Fac Was Fac Low Low Dat Pro Fac Low Low Zio Pro Fac Upp Upp Zhi Pro Fac Arm Matter Collected 7166 | 221 144 123 442 192 755 487 1130 135 60 796 324 . . 117 299 364 26 40 132 274 44 211 . 139 201 510 Remotely . | . . . . . . . . . . . . . . . . . . . . . . . . . . . Salvage Created 10550 | . 270 369 710 202 431 599 1869 292 295 1333 121 . . 145 493 174 69 . 271 385 . 200 . 16 258 2048 Parts 597 | . 15 19 58 24 49 39 120 5 4 82 1 . . 6 24 6 5 . 9 26 . 10 . . 16 79 Haulers Intercepted 12 | . . . 2 . . . 5 . . 2 . . . . 1 . . . . 2 . . . . . . Recyclers Shooed 11 | . 2 1 1 . . 1 2 1 . 3 . . . . . . . . . . . . . . . . Parts Field Recycled . | . . . . . . . . . . . . . . . . . . . . . . . . . . . Retrieved Matter . | . . . . . . . . . . . . . . . . . . . . . . . . . . . Parts Self-Destructed 36 | . . . . . . . . . . . 6 . . 5 . 8 5 5 2 . . 5 . . . . Prevented . | . . . . . . . . . . . . . . . . . . . . . . . . . . . Kills | -11 -10 -10 -9 -9 -9 -8 -8 -7 -7 -7 -7 -7 -7 -6 -6 -6 -6 -6 -5 -5 -5 -5 -5 -4 -4 -4 ------- Run | Scr Mat Min Mat Min Exi Min Mat Fac Was Fac Low Low Dat Pro Fac Low Low Zio Pro Fac Upp Upp Zhi Pro Fac Arm Combat Hostiles Destroyed 209 | . 5 5 22 15 4 23 40 2 . 12 3 . . 8 . 7 4 . 10 5 . 9 . 1 1 33 Melee 9 | . . . . . . . . 1 . . . . . 1 . . . . . . . 1 . . . 6 Guns 63 | . 5 2 16 3 1 11 13 . . 12 . . . . . . . . . . . . . . . . Cannons 6 | . . . . . . 6 . . . . . . . . . . . . . . . . . . . . AOE 112 | . . 3 6 12 3 6 25 . . . 3 . . 7 . 7 4 . 10 5 . 8 . 1 . 12 Classes Destroyed 21 | . 6 1 4 1 3 . 2 1 . . . . . . . . . . 1 . . . . . 1 1 Worker 29 | . 1 . 2 . . 3 6 3 . 5 . . . . 5 . . . . 2 . . . . 2 . Builder 10 | . . . 1 . . . 7 . . 2 . . . . . . . . . . . . . . . . Tunneler 2 | . . 1 . 1 . . . . . . . . . . . . . . . . . . . . . . Hauler 12 | . . . 2 . . . 5 . . 2 . . . . 1 . . . . 2 . . . . . . Recycler 16 | . 1 3 1 . . . 5 1 . 4 . . . . 1 . . . . . . . . . . . Mechanic 2 | . . . . . . . 1 . . 1 . . . . . . . . . . . . . . . . Operator 2 | . 1 . 1 . . . . . . . . . . . . . . . . . . . . . . . Turret 1 | . . . . . 1 . . . . . . . . . . . . . . . . . . . . . Watcher 26 | . 1 . 2 . . . 5 1 . 3 . . . . 4 . . . . 4 . . . . 4 2 Swarmer 102 | . 3 3 14 11 . 17 16 . . . 2 . . 4 . 3 4 . 5 5 . 5 . . . 10 Grunt 61 | . 2 2 4 3 1 4 16 1 . 6 . . . 4 . 4 . . 3 . . 3 . 1 . 7 Brawler 5 | . . . . 1 . 1 1 . . . . . . . . . . . . . . 1 . . . 1 Duelist 10 | . . . 1 . . . 4 . . . . . . . . . . . . . . . . . . 5 Protector 3 | . . . . . . . 1 . . . . . . . . . . . . . . . . . . 2 Sentry 10 | . . . 3 . . . 2 . . 2 1 . . . . . . . . . . . . . . 2 Hunter 3 | . . . . . . . . . . . . . . . . . . . . . . . . . . 3 Programmer 9 | . . . . . . . . 1 . 4 . . . . . . . . 2 . . . . . . 2 Behemoth 2 | . . . . . . . . . . . . . . . . . . . . . . . . . 1 1 Zionite 8 | . . . . . 8 . . . . . . . . . . . . . . . . . . . . . Decomposer 5 | . . . . . . . . . . . . . . . . 2 . . 3 . . . . . . . Samaritan 2 | . . . . . . . . . . . . . . . . . . . 1 . . 1 . . . . Assembled 3 | . . . . . 3 . . . . . . . . . . . . . . . . . . . . . Best Kill Streak 11 | . 5 3 6 10 7 9 9 2 . 11 3 . . 8 4 3 4 . 5 5 . 5 . 1 2 5 Combat Bots Only 8 | . 3 3 5 6 3 7 6 1 . 6 3 . . 8 . 3 4 . 5 4 . 5 . 1 1 5 Max Kills in Single Turn 4 | . 2 3 3 3 2 3 4 1 . 2 2 . . 2 1 1 4 . 3 1 . 3 . 1 1 3 Gunslinging 1 | . 1 . . . . . . . . . . . . . . . . . . . . . . . . . Exploded 4 | . . 3 2 3 2 2 3 . . . 2 . . 2 . 1 4 . 3 1 . 3 . 1 . 3 Melee 1 | . . . . . . . . 1 . . . . . 1 . . . . . . . 1 . . . 1 Uniques/NPCs Destroyed 5 | . . . . . 4 1 . . . . . . . . . . . . . . . . . . . . 8R-AWN (-9/Exiles) EX-BIN (-9/Exiles) EX-DEC (-9/Exiles) EX-HEX (-9/Exiles) ME-RLN (-8/Mines) Combat | -11 -10 -10 -9 -9 -9 -8 -8 -7 -7 -7 -7 -7 -7 -6 -6 -6 -6 -6 -5 -5 -5 -5 -5 -4 -4 -4 -------- Run | Scr Mat Min Mat Min Exi Min Mat Fac Was Fac Low Low Dat Pro Fac Low Low Zio Pro Fac Upp Upp Zhi Pro Fac Arm Damage Taken 10490 | . 257 297 805 188 1084 516 1522 206 . 793 74 62 . 102 114 12 37 . 57 262 16 142 . 75 287 3582 Core 2204 | . 69 71 127 24 118 95 171 29 . 69 7 38 . 31 31 . . . 35 107 . 30 . . 30 1122 Absorbed by Shields . | . . . . . . . . . . . . . . . . . . . . . . . . . . . Core Remaining (%) 67 | 100 . 44 . . . 9 68 . . . . . . 75 . . . . 92 . . . . 86 . . Volleys Fired 627 | . 20 20 84 13 94 74 109 . 2 74 9 . . 8 12 12 2 . 11 6 3 10 . 4 7 53 Largest 2 | . 2 2 2 2 2 1 2 . 2 2 1 . . 1 1 1 1 . 1 1 1 1 . 1 1 1 Hottest 120 | . 80 90 70 50 120 120 120 . 55 75 46 . . 46 30 46 30 . 46 30 30 46 . 46 . 46 Shots Fired 884 | . 38 40 162 18 136 74 143 . 4 132 9 . . 8 12 12 2 . 11 6 3 10 . 4 7 53 Gun 622 | . 38 39 156 6 103 42 110 . 4 124 . . . . . . . . . . . . . . . . Cannon 55 | . . . . . 26 24 5 . . . . . . . . . . . . . . . . . . . Launcher 179 | . . 1 6 12 7 8 28 . . 8 9 . . 8 12 12 2 . 11 6 3 10 . 4 . 32 Special 28 | . . . . . . . . . . . . . . . . . . . . . . . . . 7 21 Kinetic 530 | . . 8 144 6 103 42 110 . 4 113 . . . . . . . . . . . . . . . . Thermal 90 | . 3 20 12 . 26 24 5 . . . . . . . . . . . . . . . . . . . Explosive 147 | . . 1 6 12 7 8 28 . . 8 9 . . 8 12 12 2 . 11 6 3 10 . 4 . . Electromagnetic 89 | . 35 11 . . . . . . . 11 . . . . . . . . . . . . . . . 32 Robot Hit Streak 23 | . 5 11 12 12 18 23 9 . 4 10 . . . 2 . . 3 . . 8 . 12 . 13 14 6 Robot Miss Streak 5 | . 3 2 5 1 3 4 4 . 1 4 . . . . . . . . . . . . . . 1 4 Penetration Max 2 | . . . . . 1 1 2 . . 2 . . . . . . . . . . . . . . . . Secondary Targets 3 | . 1 1 . . . . . . . 1 . . . . . . . . . . . . . . . . Max Gunslinging Chain 1 | . 1 1 . . . . . . . 1 . . . . . . . . . . . . . . . . Shots Hit Robots 608 | . 20 26 108 13 95 51 88 22 3 67 1 . 1 2 15 3 1 . 4 18 . 7 . 1 12 50 Core Hits 463 | . 11 15 53 20 34 32 99 4 1 38 9 . . 15 11 12 4 . 20 15 . 16 . 3 5 46 Critical Hits 65 | . . . 1 . 12 5 20 1 2 19 . . . . 2 . . . . . . . . . 1 2 Critical Kills 32 | . . . 1 . 5 2 11 . 1 9 . . . . 1 . . . . . . . . . 1 1 Critical Parts Destroyed 28 | . . . . . 3 3 8 1 1 10 . . . . 1 . . . . . . . . . . 1 Melee Attacks 255 | . . . . . . . 6 28 . 2 1 . 1 1 64 3 1 . 4 53 2 9 . . 28 52 Impact 15 | . . . . . . . 6 9 . . . . . . . . . . . . . . . . . . Slashing 69 | . . . . . . . . 19 . 2 1 . 1 1 41 3 1 . . . . . . . . . Piercing 171 | . . . . . . . . . . . . . . . 23 . . . 4 53 2 9 . . 28 52 Sneak Attacks 27 | . . . . . . . . 5 . . . . 1 . 7 2 . . 4 3 . 2 . . 3 . Combat Hostiles 1 | . . . . . . . . . . . . . . . . . . . . . . . . . 1 . Follow-up Attacks 1 | . . . . . . . . . . . . . . . . . . . . . . . . . . 1 Damage Inflicted 30186 | . 444 475 1652 1024 2424 1880 4617 1110 46 1612 764 . 143 1077 1363 1342 218 . 2041 1596 . 1518 . 329 708 3803 Guns 6297 | . 321 281 961 79 1214 470 1382 . 46 1543 . . . . . . . . . . . . . . . . Cannons 1858 | . . . . . 948 727 183 . . . . . . . . . . . . . . . . . . . Explosions 15494 | . 123 194 679 927 262 683 2923 . . 69 687 . . 1030 . 1084 218 . 1547 675 . 1272 . 329 . 2792 Melee 6507 | . . . . . . . 129 1110 . . 77 . 143 47 1363 258 . . 494 921 . 246 . . 708 1011 Ramming 30 | . . . 12 18 . . . . . . . . . . . . . . . . . . . . . . Kinetic 5445 | . . 35 825 79 1214 470 1382 . 46 1394 . . . . . . . . . . . . . . . . Thermal 2574 | . 145 228 136 . 948 727 183 . . 29 . . . . . . . . . . . . . . . 178 Explosive 12450 | . . 94 679 927 262 683 2923 . . 40 687 . . 1030 . 1084 218 . 1547 675 . 1272 . 329 . . Electromagnetic 3180 | . 299 118 . . . . . . . 149 . . . . . . . . . . . . . . . 2614 Impact 444 | . . . . . . . 129 315 . . . . . . . . . . . . . . . . . . Slashing 1811 | . . . . . . . . 795 . . 77 . 143 47 491 258 . . . . . . . . . . Piercing 4252 | . . . . . . . . . . . . . . . 872 . . . 494 921 . 246 . . 708 1011 Highest Corruption 2 | . 2 2 . . . 2 . 2 2 2 . . . . . . . . . 1 . . . . . 2 Average Corruption 1 | . 1 2 . . . 1 . 1 2 1 . . . . . . . . . 1 . . . . . 1 Corruption Purged 6 | . . . . . . . . . . 4 . . . . . . . . . 1 . . . . . 1 Effects 52 | . . 26 . . . 13 . . 1 5 . . . . . . . . . . . . . . . 7 Message Errors 15 | . . 7 . . . 3 . . 1 2 . . . . . . . . . . . . . . . 2 Heat Flow Errors 8 | . . 4 . . . 2 . . . 1 . . . . . . . . . . . . . . . 1 Energy Discharges 12 | . . 9 . . . 2 . . . . . . . . . . . . . . . . . . . 1 Data Loss (minor) 11 | . . 5 . . . 4 . . . . . . . . . . . . . . . . . . . 2 Targeting Errors 6 | . . 1 . . . 2 . . . 2 . . . . . . . . . . . . . . . 1 Overload Shots . | . . . . . . . . . . . . . . . . . . . . . . . . . . . Overflow Damage 1710 | . . . 45 31 82 108 172 421 . . 24 . 83 93 102 52 . . 90 87 . 260 . 27 . 33 Projectiles 106 | . . . . . 73 33 . . . . . . . . . . . . . . . . . . . . Explosions 812 | . . . 45 31 9 75 136 . . . 24 . . 93 . 52 . . 90 26 . 171 . 27 . 33 Melee 792 | . . . . . . . 36 421 . . . . 83 . 102 . . . . 61 . 89 . . . . Knockbacks 3 | . . . . . . . . 3 . . . . . . . . . . . . . . . . . . Impact 3 | . . . . . . . . 3 . . . . . . . . . . . . . . . . . . Kinetic . | . . . . . . . . . . . . . . . . . . . . . . . . . . . Secondary . | . . . . . . . . . . . . . . . . . . . . . . . . . . . Self-Inflicted Damage 822 | . . 15 12 82 . 42 193 . . 28 23 . . 37 79 . 37 . . 17 17 38 . 21 . 181 Shots 37 | . . 1 1 6 . 2 8 . . 1 1 . . 2 4 . 1 . . 1 1 1 . 1 . 6 Rammed 5 | . . . 3 2 . . . . . . . . . . . . . . . . . . . . . . Targets Rammed 5 | . . . 3 2 . . . . . . . . . . . . . . . . . . . . . . Kicked . | . . . . . . . . . . . . . . . . . . . . . . . . . . . Crushed . | . . . . . . . . . . . . . . . . . . . . . . . . . . . Highest Temperature 327 | . 223 265 19 1 260 327 129 . . 135 . . . . . . . . . . . . . 2 . 138 Average Temperature 72 | . 100 50 6 1 66 119 49 . . 16 . . . . . . . . . . . . . 2 . 51 Received Heat Transfer 1398 | . 102 96 159 27 . 27 504 18 . 255 9 18 . . 6 . . . . . . 9 . 9 27 132 Effects 2 | . . . . . . 2 . . . . . . . . . . . . . . . . . . . . Interference 2 | . . . . . . 2 . . . . . . . . . . . . . . . . . . . . Siege Activations . | . . . . . . . . . . . . . . . . . . . . . . . . . . . Robots Corrupted 13 | . 1 . . . . . . . . . . . . . . . . . . . . . . . . 12 Combat Hostiles 12 | . . . . . . . . . . . . . . . . . . . . . . . . . . 12 Parts Fried 39 | . 4 . . . . . . 5 . . . . . . . . . . . . . . . . . 30 Impact Corruptions 9 | . . . . . . . 5 4 . . . . . . . . . . . . . . . . . . Robots Melted 1 | . . . . . 1 . . . . . . . . . . . . . . . . . . . . . Combat Hostiles . | . . . . . . . . . . . . . . . . . . . . . . . . . . . Parts Melted 13 | . . . 2 . 7 3 1 . . . . . . . . . . . . . . . . . . . Heat Transferred 4852 | . 150 385 407 . 2080 1180 400 . . 50 . . . . . . . . . . . . . . . 200 Parts Sabotaged . | . . . . . . . . . . . . . . . . . . . . . . . . . . . Parts Stolen 1 | . . . . . . . . . . . . . . . . . . . . . . 1 . . . . Parts Stripped . | . . . . . . . . . . . . . . . . . . . . . . . . . . . Power Chain Reactions 9 | . 2 1 . . . . . . . 1 . . . . . . . . . . . . . . . 5 Missiles Intercepted . | . . . . . . . . . . . . . . . . . . . . . . . . . . . Alert | -11 -10 -10 -9 -9 -9 -8 -8 -7 -7 -7 -7 -7 -7 -6 -6 -6 -6 -6 -5 -5 -5 -5 -5 -4 -4 -4 ------- Run | Scr Mat Min Mat Min Exi Min Mat Fac Was Fac Low Low Dat Pro Fac Low Low Zio Pro Fac Upp Upp Zhi Pro Fac Arm Peak Influence 956 | . 185 85 240 401 . 324 801 185 14 427 . . . . 424 . . . . 956 . . . . 551 584 Initial 165 | . . 18 12 76 . . 82 165 14 . . . . . 113 . . . . 144 . . . . 12 78 Average 155 | . 81 18 112 211 . 148 420 87 10 113 . . . . 45 . . . . 213 . . . . 198 233 Maximum Alert Level 3 | . . . 1 2 . 1 3 . . 2 . . . . 2 . . . . 3 . . . . 2 2 Low Security (%) 71 | 100 100 100 85 35 . 64 21 100 100 82 . . . . 99 . . . . 53 . . . . 67 50 Level 1 17 | . . . 14 60 . 35 17 . . 17 . . . . . . . . . 39 . . . . 20 25 Level 2 10 | . . . . 4 . . 58 . . . . . . . . . . . . 3 . . . . 11 23 Level 3 . | . . . . . . . 3 . . . . . . . . . . . . 4 . . . . . . Level 4 . | . . . . . . . . . . . . . . . . . . . . . . . . . . . Level 5 . | . . . . . . . . . . . . . . . . . . . . . . . . . . . High Security . | . . . . . . . . . . . . . . . . . . . . . . . . . . . Max Security . | . . . . . . . . . . . . . . . . . . . . . . . . . . . Squads Dispatched 21 | . 1 . 2 . . 1 3 1 . 5 . . . . 3 . . . . 2 . . . . 1 2 Investigation 4 | . . . . . . . . . . 1 . . . . 1 . . . . 2 . . . . . . Extermination 7 | . . . . . . . . 1 . 1 . . . . 2 . . . . . . . . . 1 2 Reinforcement 7 | . 1 . 2 . . 1 2 . . 1 . . . . . . . . . . . . . . . . Assault 1 | . . . . . . . 1 . . . . . . . . . . . . . . . . . . . Garrison 2 | . . . . . . . . . . 2 . . . . . . . . . . . . . . . . Intercept . | . . . . . . . . . . . . . . . . . . . . . . . . . . . Construction Impeded 4 | . . . . . . 1 2 . . 1 . . . . . . . . . . . . . . . . Haulers Reinforced . | . . . . . . . . . . . . . . . . . . . . . . . . . . . Stealth | -11 -10 -10 -9 -9 -9 -8 -8 -7 -7 -7 -7 -7 -7 -6 -6 -6 -6 -6 -5 -5 -5 -5 -5 -4 -4 -4 --------- Run | Scr Mat Min Mat Min Exi Min Mat Fac Was Fac Low Low Dat Pro Fac Low Low Zio Pro Fac Upp Upp Zhi Pro Fac Arm Distress Signals 18 | . . . 1 1 . 1 3 1 . 4 . . . . . . . . . 1 . . . . 1 5 Communications Jammed . | . . . . . . . . . . . . . . . . . . . . . . . . . . . Distress Signals . | . . . . . . . . . . . . . . . . . . . . . . . . . . . Times Spotted 399 | . 14 6 39 12 33 27 57 5 . 24 7 7 4 1 11 1 . . 3 22 . 7 . 2 32 85 Peak Tracking Total 21 | . 3 3 6 4 9 4 5 2 . 7 5 11 4 3 3 2 . . 4 4 . 4 . 2 10 21 Tactical Retreats 45 | . 2 . 2 1 4 3 5 1 . 2 2 3 . . 1 . . . 1 5 . . . . 4 9 Traps | -11 -10 -10 -9 -9 -9 -8 -8 -7 -7 -7 -7 -7 -7 -6 -6 -6 -6 -6 -5 -5 -5 -5 -5 -4 -4 -4 ------- Run | Scr Mat Min Mat Min Exi Min Mat Fac Was Fac Low Low Dat Pro Fac Low Low Zio Pro Fac Upp Upp Zhi Pro Fac Arm Traps Triggered 10 | . 2 . . . . . . 1 . 3 . . . . . . . . . 2 . . . . . 2 Indirectly 2 | . . . . . . . . . . . . . . . . . . . . . . . . . . 2 Trap Hack Attempts . | . . . . . . . . . . . . . . . . . . . . . . . . . . . Triggered . | . . . . . . . . . . . . . . . . . . . . . . . . . . . Disarmed . | . . . . . . . . . . . . . . . . . . . . . . . . . . . Reprogrammed . | . . . . . . . . . . . . . . . . . . . . . . . . . . . Reused . | . . . . . . . . . . . . . . . . . . . . . . . . . . . Traps Extracted . | . . . . . . . . . . . . . . . . . . . . . . . . . . . Installed . | . . . . . . . . . . . . . . . . . . . . . . . . . . . Triggered 5 | . . . . . . . . 1 . . 3 . . . . . . . . . . . . 1 . . Exploded 3 | . . . . . 3 . . . . . . . . . . . . . . . . . . . . . Machines | -11 -10 -10 -9 -9 -9 -8 -8 -7 -7 -7 -7 -7 -7 -6 -6 -6 -6 -6 -5 -5 -5 -5 -5 -4 -4 -4 ---------- Run | Scr Mat Min Mat Min Exi Min Mat Fac Was Fac Low Low Dat Pro Fac Low Low Zio Pro Fac Upp Upp Zhi Pro Fac Arm Machines Disabled 51 | . 1 1 1 1 8 . 6 1 . 5 . . . . 1 . . . . 14 . 1 . . . 11 Max in Single Turn 6 | . 1 1 1 1 1 . 2 1 . 2 . . . . 1 . . . . 6 . 1 . . . 3 Garrison Access 6 | . . . . . . . . . . 1 . . . . 2 . . . . 2 . . . . 1 . Machines Sabotaged . | . . . . . . . . . . . . . . . . . . . . . . . . . . . Garrisons Compromised . | . . . . . . . . . . . . . . . . . . . . . . . . . . . Overloaded Fab Kills . | . . . . . . . . . . . . . . . . . . . . . . . . . . . Fab Network Shutdowns 4 | . . . . . . . . . . 1 . . . . 1 . . . . 1 . . . . 1 . Hacking | -11 -10 -10 -9 -9 -9 -8 -8 -7 -7 -7 -7 -7 -7 -6 -6 -6 -6 -6 -5 -5 -5 -5 -5 -4 -4 -4 --------- Run | Scr Mat Min Mat Min Exi Min Mat Fac Was Fac Low Low Dat Pro Fac Low Low Zio Pro Fac Upp Upp Zhi Pro Fac Arm Machines Accessed 125 | . 6 1 9 . 2 . 12 7 . 16 . 1 4 . 18 . 1 1 . 16 . . 5 . 15 11 Terminals 77 | . 6 1 8 . . . 9 6 . 9 . . . . 10 . . . . 9 . . . . 11 8 Fabricators 13 | . . . . . . . . . . 4 . . . . 3 . . . . 3 . . . . 1 2 Repair Stations 9 | . . . 1 . . . 1 . . 2 . . . . 2 . . . . . . . . . 2 1 Recycling Units 3 | . . . . . . . . . . . . . . . 1 . . . . 2 . . . . . . Scanalyzers 3 | . . . . . . . 2 1 . . . . . . . . . . . . . . . . . . Garrison Access 6 | . . . . . . . . . . 1 . . . . 2 . . . . 2 . . . . 1 . Total Hacks 609 | . 21 4 22 . 2 . 89 42 . 76 . 1 31 . 104 . 1 3 . 77 . . 18 . 70 48 Successful 463 | . 13 1 12 . 2 . 70 26 . 57 . 1 31 . 78 . 1 3 . 62 . . 18 . 49 39 Failed 142 | . 8 3 9 . . . 19 16 . 18 . . . . 25 . . . . 14 . . . . 21 9 Catastrophic 10 | . . . . . . . 1 1 . 1 . . . . . . . . . 3 . . . . 4 . Database Lockouts 4 | . . . 1 . . . . . . 1 . . . . 1 . . . . 1 . . . . . . Manual 280 | . 13 4 11 . 1 . 34 21 . 32 . . . . 53 . . . . 38 . 1 . . 44 28 Terminals 411 | . 21 4 20 . . . 47 39 . 50 . . . . 72 . . . . 58 . . . . 58 42 Fabricators 56 | . . . . . . . . . . 18 . . . . 16 . . . . 15 . . . . 3 4 Repair Stations 49 | . . . 2 . . . 20 . . 6 . . . . 11 . . . . . . . . . 8 2 Recycling Units 3 | . . . . . . . . . . . . . . . 1 . . . . 2 . . . . . . Scanalyzers 25 | . . . . . . . 22 3 . . . . . . . . . . . . . . . . . . Garrison Access 9 | . . . . . . . . . . 2 . . . . 4 . . . . 2 . . . . 1 . Terminal Hacks 238 | . 7 1 6 . 2 . 18 16 . 25 . 1 31 . 34 . 1 3 . 27 . . 18 . 29 19 Record 22 | . . . . . 1 . . . . 1 . . 11 . . . . . . 2 . . 6 . 1 . Part Schematic 38 | . . . . . . . 1 . . 2 . . 10 . 5 . . 3 . 1 . . 4 . 12 . Robot Schematic 7 | . . . . . . . . . . . . . 7 . . . . . . . . . . . . . Robot Analysis 20 | . 2 . . . . . . . . . . . . . 7 . . . . 5 . . 4 . 1 1 Prototype ID Bank 36 | . 2 1 2 . . . 3 7 . 5 . . 3 . 2 . . . . 3 . . 4 . 2 2 Open Door 2 | . . . . . . . . . . . . 1 . . . . 1 . . . . . . . . . Level Access Points 1 | . . . . . . . . . . . . . . . . . . . . . . . . . . 1 Branch Access Points 6 | . . . . . . . 1 1 . 1 . . . . 1 . . . . 1 . . . . 1 . Machine Index 2 | . . . . . . . . . . . . . . . . . . . . 1 . . . . . 1 Terminal Index 8 | . 1 . 1 . . . 1 1 . 1 . . . . 1 . . . . 1 . . . . . 1 Fabricator Index 6 | . . . . . . . 1 1 . 1 . . . . 1 . . . . 1 . . . . 1 . Repair Station Index 3 | . . . . . . . 1 . . 1 . . . . 1 . . . . . . . . . . . Recycling Unit Index 2 | . . . . . . . 1 . . . . . . . 1 . . . . . . . . . . . Garrison Index 4 | . . . . . . . . . . 1 . . . . 1 . . . . 1 . . . . 1 . Alert Level 17 | . . . . . . . 2 1 . 4 . . . . 3 . . . . 3 . . . . 2 2 Unreport Threat 18 | . . . 1 . . . 3 . . 4 . . . . 4 . . . . 2 . . . . 2 2 Locate Traps 19 | . 1 . 1 . . . 2 2 . 1 . . . . 1 . . . . 3 . . . . 4 4 Recall Investigation 1 | . . . . . . . . . . . . . . . . . . . . 1 . . . . . . Recall Extermination 5 | . . . . . . . . . . 1 . . . . 2 . . . . . . . . . 1 1 Hauler Manifests 8 | . 1 . 1 . . . 1 1 . 1 . . . . 1 . . . . 1 . . . . . 1 Registered Components 4 | . . . . . . . 1 1 . . . . . . 1 . . . . 1 . . . . . . Registered Prototypes 5 | . . . . . . . . 1 . 1 . . . . 1 . . . . . . . . . 1 1 Zone Layout 3 | . . . . . . . . . . . . . . . 1 . . . . . . . . . . 2 EX-Prototype ID Bank 1 | . . . . . 1 . . . . . . . . . . . . . . . . . . . . . Fabricator Hacks 40 | . . . . . . . . . . 13 . . . . 11 . . . . 11 . . . . 2 3 Network Status 1 | . . . . . . . . . . . . . . . 1 . . . . . . . . . . . Load Schematic 16 | . . . . . . . . . . 5 . . . . 5 . . . . 4 . . . . 1 1 Build 23 | . . . . . . . . . . 8 . . . . 5 . . . . 7 . . . . 1 2 Repair Station Hacks 42 | . . . 2 . . . 17 . . 4 . . . . 9 . . . . . . . . . 8 2 Scan Component 22 | . . . 1 . . . 9 . . 2 . . . . 5 . . . . . . . . . 4 1 Repair 20 | . . . 1 . . . 8 . . 2 . . . . 4 . . . . . . . . . 4 1 Recycling Unit Hacks . | . . . . . . . . . . . . . . . . . . . . . . . . . . . Scanalyzer 25 | . . . . . . . 22 3 . . . . . . . . . . . . . . . . . . Insert Component 11 | . . . . . . . 10 1 . . . . . . . . . . . . . . . . . . Analyze 14 | . . . . . . . 12 2 . . . . . . . . . . . . . . . . . . Garrison Access Hacks 6 | . . . . . . . . . . 1 . . . . 2 . . . . 2 . . . . 1 . Seal Access 6 | . . . . . . . . . . 1 . . . . 2 . . . . 2 . . . . 1 . Unauthorized Hacks 112 | . 6 . 4 . . . 13 7 . 14 . . . . 22 . . . . 22 . . . . 9 15 Terminals 95 | . 6 . 4 . . . 13 7 . 10 . . . . 17 . . . . 16 . . . . 8 14 Track 33 | . 1 . 1 . . . 4 2 . 5 . . . . 7 . . . . 6 . . . . 1 6 Assimilate 12 | . 1 . . . . . 2 1 . . . . . . 1 . . . . 1 . . . . 3 3 Botnet 41 | . 3 . 2 . . . 6 3 . 4 . . . . 8 . . . . 8 . . . . 3 4 Operators 9 | . 1 . 1 . . . 1 1 . 1 . . . . 1 . . . . 1 . . . . 1 1 Fabricators 14 | . . . . . . . . . . 4 . . . . 4 . . . . 4 . . . . 1 1 Report 3 | . . . . . . . . . . 1 . . . . 1 . . . . 1 . . . . . . Siphon 11 | . . . . . . . . . . 3 . . . . 3 . . . . 3 . . . . 1 1 Repair Stations . | . . . . . . . . . . . . . . . . . . . . . . . . . . . Recycling Units 3 | . . . . . . . . . . . . . . . 1 . . . . 2 . . . . . . Tunnel 3 | . . . . . . . . . . . . . . . 1 . . . . 2 . . . . . . Scanalyzers . | . . . . . . . . . . . . . . . . . . . . . . . . . . . Garrison Access . | . . . . . . . . . . . . . . . . . . . . . . . . . . . Data Cores Recovered 1 | . 1 . . . . . . . . . . . . . . . . . . . . . . . . . Used 1 | . 1 . . . . . . . . . . . . . . . . . . . . . . . . . Hacking Detections 75 | . 6 1 7 . . . 8 6 . 11 . . . . 11 . . . . 8 . . . . 11 6 Full Trace Events 1 | . . 1 . . . . . . . . . . . . . . . . . . . . . . . . Feedback Events . | . . . . . . . . . . . . . . . . . . . . . . . . . . . Feedback Blocked . | . . . . . . . . . . . . . . . . . . . . . . . . . . . Robot Schematics Acquired 7 | . . . . . . . . . . . . . 7 . . . . . . . . . . . . . Robots Built . | . . . . . . . . . . . . . . . . . . . . . . . . . . . Matter . | . . . . . . . . . . . . . . . . . . . . . . . . . . . Time . | . . . . . . . . . . . . . . . . . . . . . . . . . . . Total Robot Build Rating . | . . . . . . . . . . . . . . . . . . . . . . . . . . . Part Schematics Acquired 47 | . . . . . . . 10 1 . 2 . . 10 . 5 . . 3 . 1 . . 4 . 11 . Parts Built 18 | . . . . . . . . . . 7 . . . . 4 . . . . 5 . . . . 1 1 Matter 3505 | . . . . . . . . . . 864 . . . . 898 . . . . 1011 . . . . 263 469 Time 1932 | . . . . . . . . . . 457 . . . . 370 . . . . 638 . . . . 187 280 Total Part Build Rating 83 | . . . . . . . . . . 22 . . . . 23 . . . . 26 . . . . 7 5 Parts Repaired 20 | . . . 1 . . . 8 . . 2 . . . . 4 . . . . . . . . . 4 1 Time 1190 | . . . 26 . . . 622 . . 56 . . . . 92 . . . . . . . . . 305 89 Parts Recycled . | . . . . . . . . . . . . . . . . . . . . . . . . . . . Recycled Matter . | . . . . . . . . . . . . . . . . . . . . . . . . . . . Retrieved Matter . | . . . . . . . . . . . . . . . . . . . . . . . . . . . Retrieved Components . | . . . . . . . . . . . . . . . . . . . . . . . . . . . Parts Scanalyzed 10 | . . . . . . . 9 1 . . . . . . . . . . . . . . . . . . Part Schematics Acquired 10 | . . . . . . . 9 1 . . . . . . . . . . . . . . . . . . Parts Damaged 2 | . . . . . . . 2 . . . . . . . . . . . . . . . . . . . Bothacking | -11 -10 -10 -9 -9 -9 -8 -8 -7 -7 -7 -7 -7 -7 -6 -6 -6 -6 -6 -5 -5 -5 -5 -5 -4 -4 -4 ------------ Run | Scr Mat Min Mat Min Exi Min Mat Fac Was Fac Low Low Dat Pro Fac Low Low Zio Pro Fac Upp Upp Zhi Pro Fac Arm Used RIF Installer . | . . . . . . . . . . . . . . . . . . . . . . . . . . . Robots Hacked . | . . . . . . . . . . . . . . . . . . . . . . . . . . . Non-combat . | . . . . . . . . . . . . . . . . . . . . . . . . . . . Combat . | . . . . . . . . . . . . . . . . . . . . . . . . . . . Robot Hacks Applied . | . . . . . . . . . . . . . . . . . . . . . . . . . . . Relay Couplers Released . | . . . . . . . . . . . . . . . . . . . . . . . . . . . Robots Rewired . | . . . . . . . . . . . . . . . . . . . . . . . . . . . Allies Hacked . | . . . . . . . . . . . . . . . . . . . . . . . . . . . Hacks Repelled . | . . . . . . . . . . . . . . . . . . . . . . . . . . . Allies | -11 -10 -10 -9 -9 -9 -8 -8 -7 -7 -7 -7 -7 -7 -6 -6 -6 -6 -6 -5 -5 -5 -5 -5 -4 -4 -4 -------- Run | Scr Mat Min Mat Min Exi Min Mat Fac Was Fac Low Low Dat Pro Fac Low Low Zio Pro Fac Upp Upp Zhi Pro Fac Arm Total Allies 16 | . 1 . . 4 . . 1 . . . . . . . 1 . . . . 1 . . . . 3 5 Largest Group 4 | . 1 1 1 4 4 . 1 . . . . . . . 1 . . . . 1 . . . . 2 2 Highest-Rated Group 188 | . 10 10 10 71 71 . 10 . . . . . . . 10 . . . . 26 . . . . 36 188 Highest-Rated Ally 94 | . 10 10 10 31 31 . 10 . . . . . . . 10 . . . . 26 . . . . 26 94 Total Orders 15 | . . 4 1 . 7 . . . . . . . . . 3 . . . . . . . . . . . STAY 10 | . . 2 1 . 5 . . . . . . . . . 2 . . . . . . . . . . . FOLLOW 5 | . . 2 . . 2 . . . . . . . . . 1 . . . . . . . . . . . Ally Attacks 56 | . . . . . 10 . . . . . . . 5 . . . . . . . . . . . . 41 Total Damage 1550 | . . . . . 87 . . . . . . . 288 . . . . . . . . . . . . 1175 Kills 7 | . . . . . 1 . . . . . . . . . . . . . . . . . . . . 6 Allies Corrupted . | . . . . . . . . . . . . . . . . . . . . . . . . . . . Allies Melted . | . . . . . . . . . . . . . . . . . . . . . . . . . . . Turrets Deployed 1 | . . . . . . . . . . . . . 1 . . . . . . . . . . . . . Intel | -11 -10 -10 -9 -9 -9 -8 -8 -7 -7 -7 -7 -7 -7 -6 -6 -6 -6 -6 -5 -5 -5 -5 -5 -4 -4 -4 ------- Run | Scr Mat Min Mat Min Exi Min Mat Fac Was Fac Low Low Dat Pro Fac Low Low Zio Pro Fac Upp Upp Zhi Pro Fac Arm Robot Analysis Total 20 | . 2 . . . . . . . . . . . . . 7 . . . . 5 . . 4 . 1 1 Derelict Logs Recovered 17 | . . 1 . . . . . . . . 1 3 . 1 . 2 2 2 . . 2 . . 3 . . Drone Launches . | . . . . . . . . . . . . . . . . . . . . . . . . . . . Drone Recoveries . | . . . . . . . . . . . . . . . . . . . . . . . . . . . Decoded 0b10 Intel 20 | . . . . . . . . . . . . . . . . . . . . 20 . . . . . . Traps 13 | . . . . . . . . . . . . . . . . . . . . 13 . . . . . . Emergency Access 7 | . . . . . . . . . . . . . . . . . . . . 7 . . . . . . Exploration | -11 -10 -10 -9 -9 -9 -8 -8 -7 -7 -7 -7 -7 -7 -6 -6 -6 -6 -6 -5 -5 -5 -5 -5 -4 -4 -4 ------------- Run | Scr Mat Min Mat Min Exi Min Mat Fac Was Fac Low Low Dat Pro Fac Low Low Zio Pro Fac Upp Upp Zhi Pro Fac Arm Turns Passed 23200 | 56 673 2221 1332 1032 2633 1367 2358 947 536 1866 407 211 52 169 2171 257 172 271 296 1323 165 232 62 280 890 1221 Spaces Moved 23263 | 55 497 711 658 514 1139 602 985 543 287 2102 752 503 117 383 3201 742 604 947 689 2539 320 429 154 440 2038 1312 Core 22 | 19 . . . . 2 . . . . . . . . . . . . . . . . . . . . 1 Treads 1701 | . 186 . 326 514 567 . . . . . . . . . . . . . . . . . . . . 108 Legs 3786 | . . . . . 570 602 985 543 287 799 . . . . . . . . . . . . . . . . Wheels 1390 | 36 311 711 332 . . . . . . . . . . . . . . . . . . . . . . . Hover . | . . . . . . . . . . . . . . . . . . . . . . . . . . . Flight 16364 | . . . . . . . . . . 1303 752 503 117 383 3201 742 604 947 689 2539 320 429 154 440 2038 1203 Fastest Speed 25 | 50 80 90 100 180 180 190 150 153 153 29 29 29 29 29 27 27 27 27 27 27 29 29 25 25 25 25 Average Speed 65 | 77 114 90 139 180 192 190 171 153 180 69 29 29 29 29 28 27 27 27 27 28 29 29 29 25 25 40 Slowest Speed 1500 | 150 160 90 180 180 1500 190 190 180 183 183 29 29 29 29 30 100 27 100 27 29 29 29 102 25 102 300 Overloaded Moves 27 | . . . . . . . . . . . . . . . . . . . . . . . . . . 27 Propulsion Burnouts . | . . . . . . . . . . . . . . . . . . . . . . . . . . . Robots Hopped 91 | . . . . . . . . . . 20 1 . 1 1 28 . . . . 12 . 2 . . 13 13 Cave-ins Triggered . | . . . . . . . . . . . . . . . . . . . . . . . . . . . Exploration Rate (%) 64 | 4 52 100 51 97 90 94 67 14 95 40 76 64 76 60 35 77 79 84 81 47 55 56 60 63 38 74 Regions Visited 26 Branch Regions 17 Pre-discovered Areas 12 | . . . . . 1 . . . . . . 1 1 . 1 . 1 2 . 2 . . 3 . . . Known Exits Taken 16 | . . . . . . . . . . 1 1 1 1 1 1 1 1 1 1 1 1 1 1 1 1 . Unknown Exits Taken 8 | 1 1 1 1 1 1 1 1 . . . . . . . . . . . . . . . . . . . Scrap Searched 25 | . . 1 . 1 . 3 . . . . 4 . . 1 . 5 2 1 . . 3 2 . 2 . . Spaces Dug 310 | . . . . . . . 1 2 . 23 31 . . . 137 6 15 . . 34 30 2 . . 12 17 Terrain Destroyed 1666 | . 6 22 42 103 47 64 141 2 . 61 112 . . 92 158 170 21 . 137 232 30 108 . 69 12 37 Melee 108 | . . . . . . . 1 2 . 2 . . . . 44 . 1 . . 25 2 2 . . 12 17 Projectile 23 | . . . . . 6 3 9 . . 5 . . . . . . . . . . . . . . . . AOE 1535 | . 6 22 42 103 41 61 131 . . 54 112 . . 92 114 170 20 . 137 207 28 106 . 69 . 20 Terrain Rammed . | . . . . . . . . . . . . . . . . . . . . . . . . . . . Walls Destroyed . | . . . . . . . . . . . . . . . . . . . . . . . . . . . Machines Disabled . | . . . . . . . . . . . . . . . . . . . . . . . . . . . Actions | -11 -10 -10 -9 -9 -9 -8 -8 -7 -7 -7 -7 -7 -7 -6 -6 -6 -6 -6 -5 -5 -5 -5 -5 -4 -4 -4 --------- Run | Scr Mat Min Mat Min Exi Min Mat Fac Was Fac Low Low Dat Pro Fac Low Low Zio Pro Fac Upp Upp Zhi Pro Fac Arm Total 29762 | 64 559 2253 929 602 1453 753 1497 620 305 2370 930 567 132 431 4298 779 608 960 778 3039 385 512 171 605 2321 1841 Wait 5016 | . 22 1501 132 71 116 44 318 25 2 116 156 63 13 31 1011 5 2 7 55 423 57 47 . 159 244 396 Move 23068 | 54 496 710 657 513 1138 601 984 543 286 2063 749 502 114 380 3147 741 603 946 688 2515 319 424 153 439 2014 1289 Hop 79 | . . . . . . . . . . 18 1 . 1 1 25 . . . . 11 . 2 . . 10 10 Pick Up 190 | 4 9 5 20 1 43 8 25 6 5 25 . 1 . . 8 . . 1 . 7 . 4 4 1 5 8 Fast Attach 61 | 6 . 2 . . 1 5 3 . . 4 3 . . . 6 6 . 1 6 5 2 2 3 . 2 4 Attach 127 | . 2 2 6 2 14 3 19 8 2 16 4 . 1 5 6 3 . 1 3 4 . 6 1 1 5 13 Detach 46 | . . . . . 2 1 3 3 1 2 5 . . 5 2 3 . 1 3 3 . 2 1 . 2 7 Swap 123 | . 9 7 16 . 17 5 19 5 2 11 . . . . 10 . . 2 2 3 . . 3 . 3 9 Drop 152 | . 1 6 11 . 28 12 11 2 5 20 2 1 2 . 7 6 . 1 6 9 2 6 6 1 1 6 Fire 627 | . 20 20 84 13 94 74 109 . 2 74 9 . . 8 12 12 2 . 11 6 3 10 . 4 7 53 Melee 249 | . . . . . . . 6 28 . 2 1 . 1 1 64 3 1 . 4 53 2 9 . . 28 46 Ram . | . . . . . . . . . . . . . . . . . . . . . . . . . . . Kick . | . . . . . . . . . . . . . . . . . . . . . . . . . . . Crush 5 | . . . 3 2 . . . . . . . . . . . . . . . . . . . . . . Escape Stasis 19 | . . . . . . . . . . 19 . . . . . . . . . . . . . . . . Rewire . | . . . . . . . . . . . . . . . . . . . . . . . . . . . Trap . | . . . . . . . . . . . . . . . . . . . . . . . . . . . Miscellaneous . | . . . . . . . . . . . . . . . . . . . . . . . . . . . Route ------- -11/Scrapyard -10/Materials (discovered 2 exits: *Mat / *Min) -10/Mines (discovered 2 exits: *Mat x2) -9/Materials (discovered 4 exits: *Mat x2 / [*Min] / *Sto) -9/Mines (discovered 3 exits: *Mat x2 / *Exi) -9/Exiles -8/Mines (discovered 2 exits: *Mat x2) -8/Materials (discovered 2 exits: *Fac x2) -7/Factory (discovered 2 exits: Low x2) -7/Waste -7/Factory (discovered 2 exits: *Low x2) -7/Lower Caves -7/Lower Caves (discovered 2 exits: *Fac / *Dat) -7/Data Miner -6/Proximity Caves -6/Factory (discovered 4 exits: *Low x2 / Ext x2) -6/Lower Caves -6/Lower Caves -6/Zion (discovered 2 exits: Dee / *Pro) -5/Proximity Caves -5/Factory (discovered 5 exits: *Fac x3 / *Upp x2) -5/Upper Caves -5/Upper Caves (discovered 2 exits: *Fac / *Zhi) -5/Zhirov -4/Proximity Caves -4/Factory (discovered 4 exits: *Res / Upp x2 / *Arm) -4/Armory (discovered 2 exits: Res x2) History --------- Turn | Location | Event 6 | -11/Scrapyard | Discovered new exit (range 15) 57 | -11/Scrapyard | Entered Materials 123 | -10/Materials | Discovered new exit (range 15) 284 | -10/Materials | Discovered new exit (range 14) 303 | -10/Materials | Build established: Mutant 730 | -10/Materials | Entered Mines 730 | -10/Mines | Accompanied by 1 ally 814 | -10/Mines | Discovered new exit (range 8) 901 | -10/Mines | Assembled infested the area 906 | -10/Mines | Assisted by a Guerilla fighting off Assembled 2561 | -10/Mines | Discovered new exit (range 7) 2653 | -10/Mines | Core integrity fell below 50% 2951 | -10/Mines | Entered Materials 2951 | -9/Materials | Accompanied by 1 ally 2951 | -9/Materials | Evolved 2 slots: Utility x2 2952 | -9/Materials | Identified exit to Storage 3601 | -9/Materials | Repaired Lgt. Armor Plating 3688 | -9/Materials | Discovered new exit (range 8) 3762 | -9/Materials | Central database locked down 4103 | -9/Materials | Discovered new exit (range 16) 4222 | -9/Materials | Discovered new exit (range 5) 4283 | -9/Materials | Entered Mines 4285 | -9/Mines | Met a Derelict bent on vengeance 4833 | -9/Mines | Discovered new exit (range 15) 5016 | -9/Mines | Discovered new exit (range 7) 5163 | -9/Mines | Assisted by bots powering up and referring to "LRC-V3" 5229 | -9/Mines | Received a Mining Laser from a helpful Derelict 5304 | -9/Mines | Deemed a non-threat by the Exiles lab entrance 5305 | -9/Mines | Discovered new exit (range 5) 5315 | -9/Mines | Entered Exiles 5315 | -9/Exiles | Accompanied by 4 allies 5359 | -9/Exiles | Met 8R-AWN 5389 | -9/Exiles | Met EX-HEX 5494 | -9/Exiles | Met EX-DEC 5555 | -9/Exiles | Learned location of Zion (-6) 5683 | -9/Exiles | Discovered new exit (range 14) 5835 | -9/Exiles | Met EX-BIN 5863 | -9/Exiles | Aligned with FarCom system 5865 | -9/Exiles | Given EX-Vault access code 5906 | -9/Exiles | Build established: Hauler-Mutant 5911 | -9/Exiles | Opened EX-Vault 5925 | -9/Exiles | Found Gui. Plasma Cannon 5936 | -9/Exiles | Found Cloak of Protection 5979 | -9/Exiles | Warned to stay clear of 0b10 Research branches 6410 | -9/Exiles | Attacked by the Exiles 6594 | -9/Exiles | Core integrity fell below 50% 6621 | -9/Exiles | Destroyed 8R-AWN 6650 | -9/Exiles | Lost 9 parts (1p3n2u3w) 6662 | -9/Exiles | Found Prototype Device 6663 | -9/Exiles | Identified AS-neutralizer No. 17b 6668 | -9/Exiles | Found Prototype Ballistic Gun 6669 | -9/Exiles | Identified 8R-AWN's Boregun 6911 | -9/Exiles | Destroyed EX-BIN 6960 | -9/Exiles | Build established: Scavenger-Mutant 6974 | -9/Exiles | Destroyed EX-DEC 7010 | -9/Exiles | Destroyed EX-HEX 7230 | -9/Exiles | Found Prototype Device 7231 | -9/Exiles | Identified System Purifier 7294 | -9/Exiles | Found Deploy-a-Sentry 7800 | -9/Exiles | Build established: Hauler-Mutant 7948 | -9/Exiles | Stole three prototypes: Cloak of Protection, Gui. Plasma Cannon, Deploy-a-Sentry 7948 | -9/Exiles | Entered Mines 7987 | -8/Mines | ME-RLN came to Exiles' defense 8030 | -8/Mines | Destroyed ME-RLN 8043 | -8/Mines | Found Prototype Hackware 8071 | -8/Mines | Found Prototype Hackware 8210 | -8/Mines | Build established: Scavenger-Mutant 8303 | -8/Mines | Core integrity fell below 20% 8926 | -8/Mines | Destroyed 7 combat bots 8936 | -8/Mines | Discovered new exit (range 5) 9148 | -8/Mines | Discovered new exit (range 7) 9315 | -8/Mines | Entered Materials 9315 | -8/Materials | Evolved 2 slots: Propulsion x1, Utility x1 9371 | -8/Materials | Identified System Mapper 9400 | -8/Materials | Identified Ghost Barrier 10300 | -8/Materials | Discovered new exit (range 16) 10544 | -8/Materials | Build established: Hacker-Mutant 10597 | -8/Materials | Repaired Broken Lgt. Neutrino Core 10737 | -8/Materials | Repaired Broken System Purifier? 10878 | -8/Materials | Repaired Adv. Myomer Leg 10912 | -8/Materials | Repaired Imp. Aluminum Leg 10949 | -8/Materials | Repaired Mni. Grenade Launcher 11030 | -8/Materials | Repaired Cold Fusion Reactor? 11159 | -8/Materials | Repaired Hvy. Assault Rifle 11259 | -8/Materials | Repaired Adv. Energy Well? 11315 | -8/Materials | First assault squad dispatched 11648 | -8/Materials | Discovered new exit (range 12) 11673 | -8/Materials | Entered Factory 11673 | -7/Factory | Evolved 2 slots: Utility x2 12426 | -7/Factory | Identified exit to Lower Caves 12620 | -7/Factory | Sucked down chute 12620 | -7/Factory | Entered Waste 12620 | -7/Waste | The area was eerily silent 12676 | -7/Waste | Found Damper Plating 12808 | -7/Waste | Discovered new exit (range 11) 12964 | -7/Waste | Build established: Scavenger-Mutant 13155 | -7/Waste | Identified exit to Factory 13156 | -7/Waste | Entered Factory 13253 | -7/Factory | Repaired Cold Fusion Reactor 13468 | -7/Factory | Build established: Hacker-Mutant 13646 | -7/Factory | Garrison activated, responded to threat 13792 | -7/Factory | Garrison activated, responded to threat 14425 | -7/Factory | Fabricated Smartbomb Launcher? 14426 | -7/Factory | Fabricated Imp. Flight Unit? 14511 | -7/Factory | Fabricated Imp. Flight Unit? 14598 | -7/Factory | Fabricated Imp. Flight Unit (x1) 14748 | -7/Factory | Local fabrication network quarantined 14750 | -7/Factory | Fabricated Imp. Utility Shielding? 14769 | -7/Factory | Central database locked down 14776 | -7/Factory | Fabricated Lrn. Sensor Array? 14899 | -7/Factory | Repaired Mni. Grenade Launcher 15022 | -7/Factory | Entered Lower Caves 15056 | -7/Lower Caves | Attacked by a faux Warlord 15081 | -7/Lower Caves | Encountered a Warlord checkpoint 15151 | -7/Lower Caves | Build established: Hacker-Sprinter 15384 | -7/Lower Caves | Learned 8 Factory zone layouts 15410 | -7/Lower Caves | Discovered new exit (range 7) 15411 | -7/Lower Caves | Identified exit to Lower Caves 15422 | -7/Lower Caves | Spotted VL-JM0(f) 15422 | -7/Lower Caves | Spotted 60-E7I(f) 15424 | -7/Lower Caves | Encountered a Master Thief 15429 | -7/Lower Caves | Entered another Lower Caves area 15432 | -7/Lower Caves | Discovered new exit (range 8) 15501 | -7/Lower Caves | Learned 8 Factory zone layouts 15511 | -7/Lower Caves | Learned Factory security intel 15631 | -7/Lower Caves | Discovered new exit (range 11) 15639 | -7/Lower Caves | Identified exit to Data Miner 15640 | -7/Lower Caves | Entered Data Miner 15640 | -7/Data Miner | Discovered new exit (range 6) 15646 | -7/Data Miner | Met Data Miner 15652 | -7/Data Miner | Learned location of Section 7 (-2) 15652 | -7/Data Miner | Acquired the access code to Warlord's prototype stash 15658 | -7/Data Miner | Received God Mode back door access code from Data Miner 15664 | -7/Data Miner | DAS Turret deployed 15686 | -7/Data Miner | Data Conduit disabled 15691 | -7/Data Miner | Identified exit to Proximity Caves 15692 | -7/Data Miner | Entered Proximity Caves 15726 | -6/Proximity Caves | Learned Factory emergency access door positions 15859 | -6/Proximity Caves | Discovered new exit (range 9) 15861 | -6/Proximity Caves | Identified exit to Factory 15861 | -6/Proximity Caves | Entered Factory 15861 | -6/Factory | Evolved 2 slots: Utility x2 15862 | -6/Factory | Identified exit to Extension 15862 | -6/Factory | Identified exit to Lower Caves 15868 | -6/Factory | Destroyed 8 combat bots 16421 | -6/Factory | Build established: Wizard-Sprinter 16676 | -6/Factory | Central database locked down 16808 | -6/Factory | Repaired Lrn. Sensor Array 17006 | -6/Factory | Fabricated Force Lance? 17116 | -6/Factory | Fabricated Exp. Cesium-ion Thruster? 17162 | -6/Factory | Fabricated Exp. Sensor Array (x1) 17599 | -6/Factory | Fabricated Exp. Signal Interpreter (x1) 17647 | -6/Factory | Local fabrication network quarantined 17905 | -6/Factory | Repaired Imp. Utility Shielding 17923 | -6/Factory | Repaired Mni. Grenade Launcher 17966 | -6/Factory | Repaired Imp. Cesium-ion Thruster 18032 | -6/Factory | Entered Lower Caves 18040 | -6/Lower Caves | Learned Factory stockpile data 18155 | -6/Lower Caves | Encountered a Warlord checkpoint 18214 | -6/Lower Caves | Learned 12 Factory zone layouts 18286 | -6/Lower Caves | Build established: Hacker-Sprinter 18288 | -6/Lower Caves | Discovered new exit (range 5) 18289 | -6/Lower Caves | Identified exit to Lower Caves 18289 | -6/Lower Caves | Entered another Lower Caves area 18339 | -6/Lower Caves | Identified exit to Zion 18354 | -6/Lower Caves | Encountered a Warlord checkpoint 18410 | -6/Lower Caves | Learned location of Extension (-6) 18461 | -6/Lower Caves | Entered Zion 18468 | -6/Zion | Given the Hacking Drone Bay 18472 | -6/Zion | Received a hallucinogenic algorithm 18475 | -6/Zion | Discovered new exit (range 11) 18516 | -6/Zion | Visited the Megawrench Repair Shop 18545 | -6/Zion | Found CR-A16's Pointy Stick 18568 | -6/Zion | Acquired unknown access codes intercepted by a Zionite 18596 | -6/Zion | Given A8's code to call for help 18614 | -6/Zion | Identified exit to Deep Caves 18637 | -6/Zion | Megawrench repaired 8 parts 18732 | -6/Zion | Identified exit to Proximity Caves 18732 | -6/Zion | Entered Proximity Caves 18738 | -5/Proximity Caves | Spotted B-75 Beast 19026 | -5/Proximity Caves | Discovered new exit (range 9) 19028 | -5/Proximity Caves | Identified exit to Factory 19028 | -5/Proximity Caves | Entered Factory 19028 | -5/Factory | Evolved 2 slots: Utility x2 19029 | -5/Factory | Identified exit to Factory 19099 | -5/Factory | Identified exit to Upper Caves 19587 | -5/Factory | Build established: Wizard-Sprinter 19763 | -5/Factory | Fabricated Exp. Utility Shielding? 19834 | -5/Factory | Central database locked down 19853 | -5/Factory | Discovered exit to Factory (range 16) 19908 | -5/Factory | Fabricated Gravity Neutralizing Apparatus (x1) 20064 | -5/Factory | Fabricated Gravity Neutralizing Apparatus? 20228 | -5/Factory | Fabricated Adv. Hacking Suite? 20240 | -5/Factory | Fabricated Exp. Utility Shielding? 20248 | -5/Factory | Local fabrication network quarantined 20351 | -5/Factory | Entered Upper Caves 20404 | -5/Upper Caves | Learned Factory stockpile data 20406 | -5/Upper Caves | Encountered a Warlord checkpoint 20420 | -5/Upper Caves | Learned Factory terminal intel 20514 | -5/Upper Caves | Discovered new exit (range 7) 20516 | -5/Upper Caves | Identified exit to Upper Caves 20516 | -5/Upper Caves | Entered another Upper Caves area 20518 | -5/Upper Caves | Discovered exit to Factory (range 7) 20606 | -5/Upper Caves | Acquired the password to a Derelict Tinkerer's latest research 20610 | -5/Upper Caves | Found Prototype Special Weapon 20717 | -5/Upper Caves | Spotted 78-MT3(f) 20718 | -5/Upper Caves | Encountered a Master Thief 20719 | -5/Upper Caves | Spotted WS-C2Z(f) 20720 | -5/Upper Caves | Encountered a Master Thief 20737 | -5/Upper Caves | Cloak of Protection stolen by Master Thief 20737 | -5/Upper Caves | Identified Molecular Deconstructor 20746 | -5/Upper Caves | Discovered new exit (range 6) 20747 | -5/Upper Caves | Identified exit to Zhirov 20748 | -5/Upper Caves | Entered Zhirov 20748 | -5/Zhirov | Discovered new exit (range 3) 20754 | -5/Zhirov | Met Zhirov 20760 | -5/Zhirov | Learned location of Quarantine (-2) 20760 | -5/Zhirov | Learned location of Testing (-3) 20760 | -5/Zhirov | Learned location of Command (-1) 20762 | -5/Zhirov | Zhirov requested help retrieving the SGEMP Prototype 20768 | -5/Zhirov | Found Alien Artifact 20769 | -5/Zhirov | Identified Integrated Reactor 20769 | -5/Zhirov | Installed Integrated Reactor, increased core energy generation (+10) 20773 | -5/Zhirov | Found Alien Artifact 20810 | -5/Zhirov | Identified exit to Proximity Caves 20810 | -5/Zhirov | Entered Proximity Caves 20902 | -4/Proximity Caves | Learned Research terminal intel 21086 | -4/Proximity Caves | Discovered exit to Factory (range 12) 21090 | -4/Proximity Caves | Entered Factory 21090 | -4/Factory | Evolved 2 slots: Utility x2 21091 | -4/Factory | Identified exit to Armory 21093 | -4/Factory | Loaded intel: 20 terminal locations 21179 | -4/Factory | Repaired Exp. Utility Shielding? 21254 | -4/Factory | Repaired Smartbomb Launcher? 21385 | -4/Factory | Local fabrication network quarantined 21452 | -4/Factory | Fabricated Imp. Fusion Compressor (x1) 21499 | -4/Factory | Identified exit to Upper Caves 21591 | -4/Factory | Discovered new exit (range 13) 21598 | -4/Factory | Spotted B-86 Titan 21766 | -4/Factory | Repaired Exp. Utility Shielding? 21890 | -4/Factory | Repaired Exp. Cesium-ion Thruster 21917 | -4/Factory | Spotted B-86 Titan 21931 | -4/Factory | Revealed the true nature of CR-A16's Pointy Stick 21934 | -4/Factory | Destroyed B-86 Titan 21980 | -4/Factory | Entered Armory 22025 | -4/Armory | Identified exit to Research 22599 | -4/Armory | Spotted B-86 Titan 22609 | -4/Armory | Enhanced Grunt warped into view, answering call for help 22609 | -4/Armory | Destroyed B-86 Titan 22610 | -4/Armory | Enhanced Grunt warped into view, answering call for help 22638 | -4/Armory | Lost 6 parts (2n3u1w) 22721 | -4/Armory | Found Prototype Launcher 22723 | -4/Armory | Identified Tesla Bomb Launcher 22872 | -4/Armory | Found Tesla Bomb Launcher 23054 | -4/Armory | Build established: Wizard-Mutant 23072 | -4/Armory | Core integrity fell below 50% 23157 | -4/Armory | Repaired Cld. Nuclear Pulse Thruster 23184 | -4/Armory | Fabricated Exp. Sensor Array? 23194 | -4/Armory | Core integrity fell below 20% 23201 | -4/Armory | Destroyed by L-61 Swordsman with Power Sword Last Messages --------------- ETC: 128 23178_ Transfer Shaft disabled. 23178_ S-27 Virus destroyed. 23178_ Fabricator disabled. 23180_ Terminal disabled. 23182_ VTOL Module fried. 23182_ S-27 Virus destroyed. 23182_ Door malfunctions. 23184_ >> FABRICATOR: Completed Exp. Sensor Array? 23184_ Enh. Armored Medium Treads severed. 23185_ L-61 Swordsman system terminally corrupted. 23185_ Adv. Melee Analysis Suite fried. 23185_ Tesla Bomb Launcher destroyed. 23186_ Enh. Armored Medium Treads severed. 23192_ Ghost Barrier destroyed. 23192_ System Mapper destroyed. 23192_ Antimatter Reactor destroyed. 23192_ Gravity Neutralizing Apparatus destroyed. 23195_ Adv. Melee Analysis Suite destroyed. 23198_ CR-A16's Behemoth Slayer severed. Map ----- +----------------------------------------------------+ | ???????????# # # " | | ???????????###########+## # | | ??????????????# # + | | ??????????????# """"" # # | | ??????????????# "!!! # + = | | ??????????????# "!""" + # = | | ??????????????# "!""" # w# | | ??????????????# "!!!" # # | | ?????########## """ " # e # | | ?????#![%[ *= / # # | | ?????#[#########+######## x# | | ?????#%#??????# [ #?????x?# | | ?????#=#??????# "" #???????### | | ?????# #??????# "F #?????????? | | ???###/####???# "" #?????????? | | ???# #???# "" #?????????? | | ???# """ #???# #?????????? | | ???# "R" #???####+###?????????? | | ???# "=" !#????????????????????? | | ???# #????????????????????? | | ???#! %/ =#????????#???????????? | | ???####/########## #???????????? | | ?????# %= ####????????? | | ?????# !!???????? | | ?????# / ! ???????? | | ????###@== ???????? | | ????# !%ll ???????? | | ????# *%s ???????? | | ????# % """????????? | | ????# ** "?????????? | | ????### %= "?????????? | | ??????# ?????????? | | ????? ?????????? | | ???? ??????????? | | ???# ########## ??????????? | | ???#### #??????????#???????????? | | ??????# ???????????????????????? | | ??????# ???????????????????????? | | ??????# ???????????????????????? | | ??????# ???????????????????????? | | ??????# ???????????????????????? | | ??????? ???????????????????????? | | ??????? ???????????????????????? | | ???????????????????????????????? | | ???????????????????????????????? | | ???????????????????????????????? | | ???????????????????????????????? | | ???????????????????????????????? | | ???????????????????????????????? | | ?????????????????????